bitfinex/quotes_SOLUSD_20230120
["timestamp","ask_amount","ask_price","bid_price","bid_amount"]
[1674182090892,10.96,21.535,21.519,20.0]
[1674182091093,0.96,21.534,21.52,17.0]
[1674182091425,0.96,21.533,21.521,20.0]
[1674182091635,0.96,21.533,21.522,17.0]
[1674182092139,0.96,21.532,21.523,20.0]
[1674182092806,0.96,21.532,21.518,20.0]
[1674182093116,0.96,21.531,21.519,17.0]
[1674182093441,0.96,21.531,21.52,20.0]
[1674182094171,0.96,21.531,21.519,20.0]
[1674182094373,0.96,21.532,21.52,27.0]
[1674182094575,0.96,21.534,21.522,10.0]
[1674182094795,10.0,21.535,21.523,37.0]
[1674182095959,10.0,21.535,21.523,20.0]
[1674182096155,1.92,21.534,21.519,20.0]
[1674182096366,1.92,21.534,21.52,17.0]
[1674182096568,1.92,21.534,21.521,20.0]
[1674182097219,1.92,21.534,21.521,10.0]
[1674182097422,1.92,21.534,21.522,20.0]
[1674182097772,1.92,21.534,21.523,17.0]
[1674182098268,1.92,21.534,21.524,20.0]
[1674182098672,144.4537,21.542,21.524,20.0]
[1674182098883,109.6337,21.542,21.525,17.0]
[1674182099102,109.6337,21.542,21.526,20.0]
[1674182099302,10.0,21.541,21.526,20.0]
[1674182099827,10.0,21.541,21.524,20.0]
[1674182100045,0.96,21.54,21.525,17.0]
[1674182100252,0.96,21.54,21.526,20.0]
[1674182100465,0.96,21.539,21.526,20.0]
[1674182100681,0.96,21.538,21.526,20.0]
[1674182100890,0.96,21.537,21.519,20.0]
[1674182101101,0.96,21.536,21.519,20.0]
[1674182101419,0.96,21.536,21.52,10.0]
[1674182101608,0.96,21.535,21.522,10.0]
[1674182101818,0.96,21.534,21.523,20.0]
[1674182102462,0.96,21.534,21.524,17.0]
[1674182102682,10.0,21.537,21.525,20.0]
[1674182102877,0.96,21.536,21.525,20.0]
[1674182104159,0.96,21.535,21.525,20.0]
[1674182104472,0.96,21.534,21.525,20.0]
[1674182106570,0.96,21.535,21.525,20.0]
[1674182106785,0.96,21.536,21.525,20.0]
[1674182106992,0.96,21.535,21.525,20.0]
[1674182107830,0.96,21.535,21.519,20.0]
[1674182108042,0.96,21.535,21.517,124.7151]
[1674182108043,0.96,21.535,21.52,17.0]
[1674182108364,0.96,21.535,21.512,40.52140825]
[1674182108581,10.0,21.533,21.512,40.52140825]
[1674182108796,18.92,21.532,21.512,40.52140825]
[1674182108993,10.0,21.531,21.512,40.52140825]
[1674182109204,1.92,21.53,21.512,40.52140825]
[1674182109412,18.92,21.53,21.512,40.52140825]
[1674182109626,18.92,21.53,21.507,109.7553]
[1674182109840,34.84,21.529,21.508,20.0]
[1674182110161,11.92,21.528,21.509,10.0]
[1674182110579,10.96,21.528,21.509,10.0]
[1674182110973,10.96,21.528,21.508,23.75576951]
[1674182111187,10.96,21.528,21.507,109.7553]
[1674182111723,112.9978,21.527,21.507,109.7553]
[1674182112052,28.92,21.526,21.508,20.0]
[1674182113706,28.92,21.526,21.502,40.52140825]
[1674182113707,34.85,21.525,21.502,40.52140825]
[1674182113920,10.0,21.523,21.502,40.52140825]
[1674182114131,1.92,21.522,21.502,40.52140825]
[1674182114354,18.92,21.522,21.502,40.52140825]
[1674182114682,10.0,21.521,21.502,40.52140825]
[1674182114868,1.92,21.52,21.502,40.52140825]
[1674182115291,1.92,21.52,21.503,10.0]
[1674182115515,0.96,21.52,21.504,0.96]
[1674182115717,0.96,21.522,21.505,10.0]
[1674182115930,0.96,21.522,21.505,23.75576951]
[1674182116151,0.96,21.522,21.506,17.0]
[1674182116683,0.96,21.522,21.507,20.0]
[1674182116868,0.96,21.521,21.507,20.0]
[1674182117079,0.96,21.52,21.507,20.0]
[1674182117832,0.96,21.52,21.505,20.0]
[1674182118030,10.0,21.519,21.505,20.0]
[1674182118235,1.92,21.518,21.505,20.0]
[1674182118445,1.92,21.518,21.5,20.0]
[1674182118654,18.92,21.518,21.5,20.0]
[1674182118864,10.0,21.517,21.5,20.0]
[1674182119089,1.92,21.516,21.5,20.0]
[1674182119308,137.2527,21.516,21.5,20.0]
[1674182119504,10.0,21.515,21.497,20.0]
[1674182119707,1.92,21.514,21.5,40.52140825]
[1674182119919,119.2927,21.516,21.501,37.0]
[1674182120133,0.96,21.515,21.501,37.0]
[1674182120653,118.3327,21.516,21.502,0.96]
[1674182120873,10.0,21.523,21.503,0.96]
[1674182121072,116.4234,21.524,21.505,10.0]
[1674182121283,116.4234,21.524,21.506,37.96]
[1674182121490,34.83,21.536,21.506,144.62964435]
[1674182121698,112.4866,21.535,21.507,23.75576951]
[1674182121916,112.4866,21.535,21.508,10.0]
[1674182122145,112.4866,21.535,21.509,38.92]
[1674182122355,112.4866,21.535,21.509,144.62964435]
[1674182122665,112.4866,21.535,21.51,115.70964435]
[1674182122877,34.81,21.548,21.511,38.92]
[1674182123087,122.4866,21.547,21.512,10.0]
[1674182123284,10.0,21.545,21.514,10.0]
[1674182123483,34.82,21.544,21.515,37.0]
[1674182123699,34.82,21.544,21.516,10.96]
[1674182123911,10.0,21.543,21.518,10.0]
[1674182124155,10.0,21.543,21.519,38.92]
[1674182124156,0.96,21.537,21.519,38.92]
[1674182124336,1.92,21.537,21.519,62.67576951]
[1674182124548,1.92,21.537,21.52,10.0]
[1674182124765,1.92,21.537,21.522,10.0]
[1674182124962,1.92,21.537,21.523,20.0]
[1674182125163,1.92,21.537,21.523,60.75576951]
[1674182125379,0.96,21.537,21.523,43.75576951]
[1674182125602,10.0,21.543,21.524,50.75576951]
[1674182125810,10.0,21.543,21.526,10.0]
[1674182126008,10.0,21.543,21.527,17.0]
[1674182127479,10.0,21.543,21.526,17.0]
[1674182127688,10.0,21.542,21.527,20.0]
[1674182127902,10.0,21.542,21.528,17.0]
[1674182129077,10.0,21.546,21.528,40.75576951]
[1674182129290,10.0,21.546,21.529,30.0]
[1674182129503,10.0,21.546,21.53,17.0]
[1674182129705,10.0,21.546,21.531,20.0]
[1674182129923,10.0,21.548,21.532,10.0]
[1674182130138,109.4449,21.558,21.533,37.0]
[1674182130323,34.79,21.557,21.533,37.0]
[1674182130535,10.0,21.556,21.534,10.0]
[1674182130765,34.8,21.555,21.535,37.0]
[1674182130963,34.8,21.555,21.536,10.0]
[1674182131171,0.96,21.548,21.537,20.0]
[1674182131387,0.96,21.547,21.535,20.0]
[1674182131586,0.96,21.546,21.535,20.0]
[1674182131810,0.96,21.545,21.535,20.0]
[1674182132542,0.96,21.544,21.535,20.0]
[1674182133172,34.8,21.551,21.535,20.0]
[1674182133383,10.0,21.552,21.535,20.0]
[1674182133583,44.8,21.556,21.536,17.0]
[1674182133789,10.0,21.555,21.538,10.0]
[1674182134013,44.8,21.554,21.538,10.0]
[1674182134543,364.88326828,21.59,21.539,37.96]
[1674182134544,34.79,21.559,21.539,37.96]
[1674182134753,34.77,21.57,21.539,37.96]
[1674182134946,10.0,21.569,21.54,10.0]
[1674182135159,34.78,21.568,21.541,38.92]
[1674182135693,34.78,21.568,21.542,23.75576951]
[1674182135914,10.0,21.567,21.544,10.0]
[1674182136121,34.78,21.566,21.545,17.0]
[1674182136304,34.78,21.566,21.546,20.0]
[1674182136519,0.96,21.559,21.546,20.0]
[1674182136835,10.0,21.565,21.547,10.0]
[1674182137062,34.78,21.564,21.547,10.0]
[1674182137993,0.96,21.559,21.547,10.0]
[1674182138537,34.78,21.564,21.547,10.0]
[1674182139061,0.96,21.559,21.546,20.0]
[1674182139256,0.96,21.558,21.545,20.0]
[1674182139463,0.96,21.557,21.541,20.0]
[1674182139673,0.96,21.556,21.539,20.0]
[1674182139885,0.96,21.555,21.54,10.0]
[1674182140096,0.96,21.554,21.542,10.0]
[1674182140416,0.96,21.554,21.543,20.0]
[1674182141066,0.96,21.553,21.543,20.0]
[1674182142203,0.96,21.553,21.541,20.0]
[1674182142730,0.96,21.553,21.539,20.0]
[1674182143068,0.96,21.553,21.54,17.0]
[1674182143256,0.96,21.553,21.541,20.0]
[1674182144627,0.96,21.552,21.541,20.0]
[1674182145049,0.96,21.551,21.541,20.0]
[1674182145260,0.96,21.55,21.538,20.0]
[1674182146095,0.96,21.55,21.538,19.5]
[1674182146530,44.79,21.557,21.538,19.5]
[1674182146531,44.79,21.557,21.539,17.0]
[1674182146723,110.4632,21.558,21.54,10.0]
[1674182146935,110.4632,21.558,21.541,17.0]
[1674182147144,110.4632,21.558,21.541,40.75576951]
[1674182147697,110.4632,21.558,21.542,10.0]
[1674182147885,110.4632,21.558,21.543,17.0]
[1674182148088,110.4632,21.558,21.544,10.0]
[1674182148299,110.4632,21.558,21.545,20.0]
[1674182148510,0.96,21.557,21.545,20.0]
[1674182148735,0.96,21.556,21.544,10.0]
[1674182148941,0.96,21.555,21.545,20.0]
[1674182149163,0.96,21.556,21.546,10.0]
[1674182149556,0.96,21.556,21.547,20.0]
[1674182149771,154.4842,21.57,21.548,18.92]
[1674182150204,164.4842,21.57,21.55,10.0]
[1674182150503,129.7142,21.57,21.551,17.0]
[1674182150709,129.7142,21.57,21.552,20.0]
[1674182150710,44.78,21.569,21.552,20.0]
[1674182151357,44.78,21.569,21.546,20.0]
[1674182151580,44.78,21.569,21.545,20.0]
[1674182151893,68.53576951,21.569,21.539,132.64566951]
[1674182152078,38.92,21.568,21.539,132.64566951]
[1674182152289,10.0,21.566,21.539,132.64566951]
[1674182152507,53.7,21.565,21.539,23.75576951]
[1674182152715,53.7,21.565,21.533,119.8741]
[1674182152716,57.63353,21.565,21.533,119.8741]
[1674182152937,33.75576951,21.564,21.534,23.75576951]
[1674182153147,53.7,21.563,21.535,20.0]
[1674182153566,10.0,21.562,21.536,23.75576951]
[1674182153778,53.71,21.561,21.537,20.0]
[1674182154196,231.1437,21.56,21.537,20.0]
[1674182154390,10.0,21.558,21.537,20.0]
[1674182154618,52.75,21.557,21.537,20.0]
[1674182154939,3.93353,21.556,21.515,401.93409313]
[1674182155136,36.72,21.555,21.517,109.8741]
[1674182155337,17.0,21.554,21.525,40.52140825]
[1674182155557,10.0,21.552,21.518,10.0]
[1674182155767,52.76,21.551,21.522,23.75576951]
[1674182155995,0.96,21.55,21.522,23.75576951]
[1674182156194,35.77,21.549,21.522,64.27717776]
[1674182156408,27.96,21.548,21.523,10.0]
[1674182156622,10.0,21.546,21.517,109.8741]
[1674182156837,10.0,21.544,21.518,10.0]
[1674182157026,52.78,21.543,21.518,33.75576951]
[1674182157243,0.96,21.542,21.519,64.27717776]
[1674182157451,10.0,21.54,21.52,10.0]
[1674182157673,0.96,21.539,21.52,74.27717776]
[1674182157871,0.96,21.538,21.52,74.27717776]
[1674182158084,0.96,21.537,21.52,74.27717776]
[1674182158299,0.96,21.536,21.521,23.75576951]
[1674182158511,0.96,21.535,21.521,23.75576951]
[1674182158714,0.96,21.534,21.522,20.0]
[1674182158932,0.96,21.533,21.521,20.0]
[1674182159251,0.96,21.532,21.521,43.75576951]
[1674182159651,0.96,21.533,21.521,43.75576951]
[1674182160503,0.96,21.532,21.521,43.75576951]
[1674182160713,0.96,21.531,21.521,43.75576951]
[1674182161456,0.96,21.53,21.521,43.75576951]
[1674182161671,111.6848,21.539,21.521,43.75576951]
[1674182161874,111.6848,21.539,21.522,17.0]
[1674182162072,111.6848,21.539,21.523,20.0]
[1674182162283,10.0,21.538,21.523,43.75576951]
[1674182163135,0.96,21.537,21.523,43.75576951]
[1674182163551,0.96,21.537,21.524,23.75576951]
[1674182163759,0.96,21.537,21.525,20.0]
[1674182163984,0.96,21.536,21.525,20.0]
[1674182164723,0.96,21.535,21.525,20.0]
[1674182165858,0.96,21.534,21.525,20.0]
[1674182166071,0.96,21.533,21.525,20.0]
[1674182166293,0.96,21.532,21.517,20.0]
[1674182166503,0.96,21.531,21.516,20.0]
[1674182166698,0.96,21.53,21.516,20.0]
[1674182166904,0.96,21.529,21.516,20.0]
[1674182167115,0.96,21.529,21.517,47.51153902]
[1674182167330,0.96,21.529,21.518,20.0]
[1674182167554,0.96,21.528,21.516,20.0]
[1674182167875,0.96,21.527,21.512,23.75576951]
[1674182168088,0.96,21.526,21.512,23.75576951]
[1674182168280,0.96,21.525,21.501,40.52140825]
[1674182168611,10.96,21.524,21.502,10.0]
[1674182168818,0.96,21.523,21.502,33.75576951]
[1674182169026,0.96,21.522,21.503,64.27717776]
[1674182169217,0.96,21.521,21.503,64.27717776]
[1674182169423,0.96,21.521,21.505,10.0]
[1674182169637,0.96,21.522,21.506,37.96]
[1674182169867,0.96,21.523,21.506,61.71576951]
[1674182170087,0.96,21.522,21.507,33.75576951]
[1674182170280,0.96,21.522,21.508,37.0]
[1674182170481,0.96,21.522,21.508,60.75576951]
[1674182170690,0.96,21.522,21.509,23.75576951]
[1674182171011,0.96,21.522,21.51,20.0]
[1674182171441,10.96,21.522,21.507,23.75576951]
[1674182171761,17.96,21.521,21.508,20.0]
[1674182171975,10.96,21.52,21.493,6.23439572]
[1674182172171,0.96,21.519,21.504,23.75576951]
[1674182172377,10.96,21.518,21.504,23.75576951]
[1674182172592,17.96,21.517,21.498,40.52140825]
[1674182172809,0.96,21.516,21.5,23.75576951]
[1674182173003,0.96,21.515,21.5,23.75576951]
[1674182173209,0.96,21.514,21.501,20.0]
[1674182173445,0.96,21.513,21.501,20.0]
[1674182173658,0.96,21.512,21.501,43.75576951]
[1674182174057,117.3465,21.516,21.501,43.75576951]
[1674182174702,117.3465,21.516,21.49,159.68786659]
[1674182174703,0.96,21.515,21.468,23.58440075]
[1674182174892,38.79353,21.514,21.477,109.6493]
[1674182175228,38.79353,21.514,21.476,115.0]
[1674182175229,10.0,21.512,21.476,115.0]
[1674182175431,10.0,21.51,21.478,23.75576951]
[1674182175638,10.0,21.508,21.478,23.75576951]
[1674182175850,52.84,21.507,21.478,23.75576951]
[1674182176053,10.0,21.505,21.478,23.75576951]
[1674182176258,18.92,21.504,21.478,23.75576951]
[1674182176487,10.0,21.503,21.478,23.75576951]
[1674182176717,18.92,21.502,21.479,18.92]
[1674182176912,10.0,21.501,21.478,23.75576951]
[1674182177098,18.92,21.5,21.48,22.90823862]
[1674182177318,10.0,21.499,21.48,22.90823862]
[1674182177528,17.96,21.498,21.48,22.90823862]
[1674182177854,0.96,21.497,21.48,22.90823862]
[1674182178172,0.96,21.496,21.481,20.0]
[1674182178381,0.96,21.495,21.472,42.90823862]
[1674182178597,0.96,21.494,21.472,42.90823862]
[1674182178811,0.96,21.493,21.474,10.0]
[1674182179118,0.96,21.492,21.475,42.90823862]
[1674182179523,0.96,21.492,21.476,22.90823862]
[1674182179727,0.96,21.492,21.478,10.0]
[1674182179940,0.96,21.492,21.477,20.0]
[1674182180153,10.0,21.495,21.479,22.90393536]
[1674182180379,10.0,21.495,21.48,17.0]
[1674182180615,18.92,21.494,21.481,20.0]
[1674182180926,10.0,21.495,21.481,20.0]
[1674182181116,10.0,21.497,21.482,17.0]
[1674182181331,10.0,21.497,21.483,20.0]
[1674182182408,1.92,21.496,21.483,20.0]
[1674182184281,1.92,21.496,21.482,20.0]
[1674182184489,10.0,21.502,21.484,22.90393536]
[1674182184703,10.0,21.502,21.485,20.0]
[1674182185022,10.0,21.502,21.485,42.90393536]
[1674182185223,10.0,21.502,21.486,17.0]
[1674182185435,10.0,21.502,21.487,20.0]
[1674182185656,10.0,21.502,21.488,17.0]
[1674182185864,10.0,21.506,21.488,17.0]
[1674182186076,118.868,21.507,21.489,20.0]
[1674182186077,116.6326,21.505,21.489,20.0]
[1674182186588,10.0,21.504,21.49,17.0]
[1674182186800,10.0,21.504,21.491,20.0]
[1674182187214,10.0,21.504,21.485,22.90393536]
[1674182187425,10.0,21.504,21.487,10.0]
[1674182187758,1.92,21.503,21.488,37.0]
[1674182188168,1.92,21.503,21.489,10.0]
[1674182188482,1.92,21.503,21.49,20.0]
[1674182189108,1.92,21.503,21.491,10.0]
[1674182189317,1.92,21.503,21.492,20.0]
[1674182190055,11.92,21.503,21.483,10.0]
[1674182190265,17.0,21.502,21.484,20.0]
[1674182190498,1.92,21.501,21.484,20.0]
[1674182190696,1.92,21.501,21.483,20.0]
[1674182191120,36.81,21.501,21.483,20.0]
[1674182191439,27.0,21.5,21.475,32.90393536]
[1674182191642,36.81,21.499,21.465,413.2354106]
[1674182191839,27.0,21.498,21.474,22.90393536]
[1674182192040,36.81,21.497,21.474,22.90393536]
[1674182192255,27.0,21.496,21.474,22.90393536]
[1674182192475,146.4361,21.496,21.474,22.90393536]
[1674182192680,1.92,21.495,21.474,22.90393536]
[1674182192887,36.81,21.495,21.474,22.90393536]
[1674182193103,125.0516,21.494,21.469,119.1148]
[1674182193301,11.92,21.493,21.469,142.01873536]
[1674182193514,17.0,21.492,21.469,142.01873536]
[1674182193721,11.92,21.491,21.469,22.90393536]
[1674182193951,17.0,21.49,21.462,115.7589]
[1674182194273,10.0,21.488,21.466,22.90393536]
[1674182194458,52.87,21.487,21.462,115.7589]
[1674182194662,0.96,21.486,21.464,10.0]
[1674182194877,0.96,21.485,21.464,10.0]
[1674182195110,10.96,21.484,21.465,22.90393536]
[1674182195420,0.96,21.483,21.465,22.90393536]
[1674182195644,0.96,21.482,21.465,22.90393536]
[1674182195847,0.96,21.481,21.465,22.90393536]
[1674182196067,0.96,21.48,21.466,20.0]
[1674182196470,0.96,21.479,21.466,42.90393536]
[1674182196892,0.96,21.478,21.466,20.0]
[1674182197126,0.96,21.478,21.462,22.90393536]
[1674182197127,0.96,21.477,21.462,22.90393536]
[1674182197331,0.96,21.476,21.462,22.90393536]
[1674182197539,0.96,21.475,21.462,22.90393536]
[1674182197860,0.96,21.474,21.462,22.90393536]
[1674182198178,0.96,21.474,21.457,10.0]
[1674182198379,0.96,21.474,21.457,32.90393536]
[1674182198992,0.96,21.474,21.455,10.0]
[1674182198993,0.96,21.473,21.458,22.90393536]
[1674182199203,0.96,21.472,21.458,22.90393536]
[1674182200156,0.96,21.472,21.455,10.0]
[1674182200157,0.96,21.471,21.455,10.0]
[1674182200798,0.96,21.471,21.457,10.0]
[1674182200994,10.0,21.478,21.457,10.0]
[1674182201215,34.92,21.481,21.458,42.90393536]
[1674182201418,118.7293,21.483,21.459,18.92]
[1674182201632,34.9,21.49,21.46,20.0]
[1674182201842,116.4346,21.49,21.461,23.60782618]
[1674182202155,116.4346,21.49,21.462,36.44508021]
[1674182202361,108.0516,21.494,21.463,25.60617103]
[1674182202578,108.0516,21.494,21.465,6.8105556]
[1674182202781,108.0516,21.494,21.467,17.49835606]
[1674182203107,108.0516,21.494,21.469,10.0]
[1674182203330,108.0516,21.494,21.47,20.0]
[1674182203508,108.0516,21.494,21.471,18.92]
[1674182203725,108.0516,21.494,21.472,20.0]
[1674182204061,34.89,21.498,21.473,28.92]
[1674182204253,113.824,21.499,21.474,20.0]
[1674182204458,34.89,21.498,21.475,18.92]
[1674182204673,34.89,21.498,21.476,20.0]
[1674182204896,34.88,21.503,21.477,18.92]
[1674182205103,34.88,21.503,21.479,10.0]
[1674182205307,10.0,21.502,21.481,10.0]
[1674182205536,34.89,21.501,21.481,10.0]
[1674182205748,34.89,21.501,21.482,37.0]
[1674182205965,17.96,21.5,21.483,10.0]
[1674182206178,17.96,21.5,21.484,20.0]
[1674182206393,17.96,21.5,21.485,10.0]
[1674182206586,34.89,21.499,21.485,10.0]
[1674182206798,17.96,21.498,21.485,10.0]
[1674182207126,0.96,21.497,21.484,20.0]
[1674182207313,0.96,21.496,21.484,20.0]
[1674182207522,0.96,21.495,21.484,20.0]
[1674182207732,0.96,21.494,21.484,20.0]
[1674182207957,0.96,21.493,21.484,20.0]
[1674182208363,0.96,21.492,21.484,20.0]
[1674182208584,0.96,21.491,21.482,20.0]
[1674182209322,0.96,21.49,21.479,20.0]
[1674182209646,0.96,21.489,21.475,20.0]
[1674182209850,0.96,21.488,21.47,20.0]
[1674182210070,0.96,21.487,21.471,10.0]
[1674182210259,0.96,21.486,21.472,20.0]
[1674182210470,0.96,21.485,21.471,10.0]
[1674182210680,0.96,21.484,21.471,10.0]
[1674182210890,0.96,21.484,21.465,32.90393536]
[1674182211116,0.96,21.483,21.466,10.0]
[1674182211522,0.96,21.483,21.47,17.0]
[1674182211952,0.96,21.483,21.466,10.0]
[1674182212160,0.96,21.482,21.468,20.0]
[1674182212371,0.96,21.481,21.468,20.0]
[1674182212575,10.0,21.489,21.468,22.90393536]
[1674182212783,34.89,21.496,21.469,10.0]
[1674182213222,34.89,21.496,21.47,0.96]
[1674182213422,44.89,21.497,21.471,10.96]
[1674182213641,10.0,21.497,21.472,17.0]
[1674182213954,10.0,21.493,21.472,59.90393536]
[1674182214166,44.9,21.493,21.472,59.90393536]
[1674182214574,18.92,21.492,21.473,10.0]
[1674182214887,18.92,21.492,21.474,37.0]
[1674182214888,10.0,21.491,21.474,37.0]
[1674182215100,1.92,21.49,21.474,37.0]
[1674182215515,18.92,21.49,21.474,37.0]
[1674182215939,10.0,21.489,21.474,20.0]
[1674182216157,36.83,21.488,21.466,10.0]
[1674182216360,36.83,21.488,21.468,22.90393536]
[1674182216570,27.0,21.487,21.468,22.90393536]
[1674182216779,1.92,21.486,21.468,22.90393536]
[1674182217000,1.92,21.486,21.466,10.0]
[1674182217311,1.92,21.486,21.467,22.90393536]
[1674182217721,151.5946,21.494,21.467,22.90393536]
[1674182218068,227.6843,21.494,21.468,10.0]
[1674182218601,227.6843,21.494,21.47,10.0]
[1674182218811,262.5843,21.494,21.471,17.0]
[1674182219115,18.92,21.492,21.471,39.90393536]
[1674182219329,10.0,21.491,21.472,22.90393536]
[1674182219518,1.92,21.49,21.473,17.0]
[1674182219729,1.92,21.49,21.474,20.0]
[1674182219957,18.92,21.49,21.468,10.0]
[1674182220166,18.92,21.49,21.451,186.15732851]
[1674182220167,34.9,21.489,21.451,23.58440075]
[1674182220378,42.86452,21.488,21.464,10.0]
[1674182220588,34.91,21.487,21.46,22.90393536]
[1674182220777,22.86452,21.486,21.46,22.90393536]
[1674182220995,34.91,21.485,21.452,117.1282]
[1674182221317,18.92,21.484,21.454,22.90393536]
[1674182221521,38.85452,21.483,21.454,32.90393536]
[1674182221727,18.92,21.482,21.454,32.90393536]
[1674182222050,34.92,21.481,21.455,22.90393536]
[1674182222261,1.92,21.48,21.455,22.90393536]
[1674182222471,34.92,21.479,21.455,32.90393536]
[1674182222693,18.92,21.478,21.455,32.90393536]
[1674182222891,1.92,21.478,21.456,41.82393536]
[1674182223095,18.92,21.478,21.457,20.0]
[1674182223441,28.92,21.478,21.458,17.96]
[1674182223740,28.92,21.478,21.459,20.0]
[1674182223962,28.92,21.478,21.46,17.0]
[1674182224145,10.0,21.477,21.461,20.0]
[1674182224352,18.92,21.476,21.461,20.0]
[1674182224791,10.0,21.475,21.461,20.0]
[1674182225010,1.92,21.474,21.461,20.0]
[1674182226362,1.92,21.474,21.462,17.0]
[1674182226564,1.92,21.474,21.463,20.0]
[1674182227196,34.92,21.48,21.463,20.0]
[1674182227410,116.6946,21.494,21.464,17.0]
[1674182227411,34.91,21.484,21.464,17.0]
[1674182227627,10.0,21.486,21.465,20.0]
[1674182227825,34.91,21.484,21.465,20.0]
[1674182228036,34.92,21.481,21.465,20.0]
[1674182228353,10.0,21.48,21.46,20.0]
[1674182228570,10.0,21.48,21.461,17.0]
[1674182228891,10.0,21.478,21.462,20.0]
[1674182229085,53.84,21.477,21.462,20.0]
[1674182229302,53.84,21.477,21.454,20.0]
[1674182229517,162.5064,21.477,21.454,20.0]
[1674182229740,162.5064,21.477,21.453,20.0]
[1674182230068,10.0,21.476,21.453,20.0]
[1674182230283,53.85,21.475,21.453,20.0]
[1674182230881,10.0,21.474,21.454,10.0]
[1674182231210,0.96,21.473,21.455,20.0]
[1674182231733,0.96,21.473,21.456,10.0]
[1674182232141,0.96,21.473,21.457,37.0]
[1674182232351,10.0,21.476,21.457,37.0]
[1674182232566,10.0,21.476,21.459,10.0]
[1674182232795,10.0,21.476,21.461,10.0]
[1674182233012,10.0,21.476,21.462,20.0]
[1674182233205,10.0,21.476,21.462,37.0]
[1674182233409,108.6664,21.477,21.462,37.0]
[1674182233616,34.92,21.479,21.462,37.0]
[1674182233828,10.0,21.481,21.463,10.0]
[1674182234054,127.6655,21.482,21.464,38.92]
[1674182234367,117.6655,21.487,21.464,38.92]
[1674182234573,117.6655,21.487,21.465,22.90393536]
[1674182234890,10.0,21.486,21.467,10.0]
[1674182235111,10.0,21.486,21.468,38.92]
[1674182235312,10.0,21.486,21.468,37.0]
[1674182235633,10.0,21.486,21.469,10.0]
[1674182235844,10.0,21.486,21.47,20.0]
[1674182236028,10.0,21.482,21.47,20.0]
[1674182236467,10.0,21.48,21.464,20.0]
[1674182236767,1.92,21.479,21.464,20.0]